bitfinex-derivatives/quotes_BTCF0:USTF0_20250222
["timestamp","ask_amount","ask_price","bid_price","bid_amount"]
[1740245785503,0.00060001,96721.0,96708.0,0.0517058]
[1740245785807,0.36315563,96722.0,96708.0,0.0517058]
[1740245785808,0.36315563,96722.0,96721.0,0.2067968]
[1740245786111,0.56995033,96722.0,96721.0,0.2067968]
[1740245786499,0.36315563,96722.0,96721.0,0.2067968]
[1740245787606,0.56995033,96722.0,96721.0,0.2067968]
[1740245788002,0.56995033,96722.0,96721.0,0.2077968]
[1740245788202,0.56995033,96722.0,96721.0,0.2377968]
[1740245788603,0.56995033,96722.0,96721.0,0.2387968]
[1740245789410,0.36315563,96722.0,96721.0,0.2387968]
[1740245790115,0.56995033,96722.0,96721.0,0.2387968]
[1740245790301,0.36315563,96722.0,96721.0,0.2387968]
[1740245792813,0.3608,96722.0,96721.0,0.2387968]
[1740245797015,0.5675755,96731.0,96730.0,0.2067776]
[1740245798421,0.5675755,96731.0,96730.0,0.2087776]
[1740245798713,0.3608,96731.0,96730.0,0.2087776]
[1740245799621,0.5675754,96731.0,96730.0,0.2087776]
[1740245801009,0.5987754,96731.0,96730.0,0.2087776]
[1740245802109,0.392,96731.0,96730.0,0.2087776]
[1740245802516,0.5987754,96731.0,96730.0,0.002]
[1740245802719,0.5987754,96731.0,96730.0,0.2087776]
[1740245804116,0.3608,96731.0,96730.0,0.2087776]
[1740245804319,0.3608,96731.0,96730.0,0.2390776]
[1740245805718,0.3608,96731.0,96730.0,0.24918567]
[1740245806821,0.3608,96731.0,96730.0,0.2390776]
[1740245807923,0.3608,96731.0,96730.0,0.24950161]
[1740245808620,0.3608,96731.0,96730.0,0.2390776]
[1740245812425,0.0516916,96736.0,96730.0,0.3931]
[1740245812618,0.6512565,96742.0,96741.0,0.2067541]
[1740245813922,0.6512565,96742.0,96741.0,0.2077541]
[1740245814313,0.6512565,96742.0,96741.0,0.2087541]
[1740245815422,0.3608,96742.0,96741.0,0.2087541]
[1740245815927,0.5675519,96742.0,96741.0,0.2087541]
[1740245821024,0.2067712,96733.0,96732.0,0.05184811]
[1740245821320,0.2067712,96733.0,96732.0,0.00015511]
[1740245821321,0.5675712,96733.0,96732.0,0.00015511]
[1740245821916,0.2068032,96718.0,96717.0,0.2068028]
[1740245822729,0.2682032,96718.0,96717.0,0.2068028]
[1740245823026,0.2682032,96718.0,96717.0,0.2078028]
[1740245823929,0.2692032,96718.0,96717.0,0.2078028]
[1740245825021,0.3025032,96718.0,96717.0,0.2078028]
[1740245829922,0.0957,96718.0,96717.0,0.2078028]
[1740245830243,0.3025032,96718.0,96717.0,0.2380028]
[1740245830731,0.0343,96718.0,96717.0,0.2380028]
[1740245830928,0.0343,96718.0,96717.0,0.2706028]
[1740245831820,0.001,96718.0,96717.0,0.2706028]
[1740245832736,0.2078032,96718.0,96717.0,0.2706028]
[1740245832920,0.001,96718.0,96717.0,0.2706028]
[1740245834423,0.2078032,96718.0,96717.0,0.2706028]
[1740245834626,0.001,96718.0,96717.0,0.2706028]
[1740245840928,0.2078032,96718.0,96717.0,0.2706028]
[1740245841339,0.001,96718.0,96717.0,0.2706028]
[1740245841633,0.2078032,96718.0,96717.0,0.2706028]
[1740245842629,0.001,96718.0,96717.0,0.2706028]
[1740245843030,0.3618,96718.0,96717.0,0.2706028]
[1740245843632,0.3618,96718.0,96717.0,0.28111394]
[1740245844139,0.3618,96718.0,96717.0,0.2706028]
[1740245847238,0.5686032,96718.0,96717.0,0.2380028]
[1740245847733,0.3618,96718.0,96717.0,0.2380028]
[1740245848437,0.5686032,96718.0,96717.0,0.2380028]
[1740245848633,0.3618,96718.0,96717.0,0.2380028]
[1740245850243,0.5686032,96718.0,96717.0,0.2380028]
[1740245850938,0.5686032,96718.0,96717.0,0.4380028]
[1740245851841,0.5686032,96718.0,96717.0,0.201]
[1740245852932,0.6808832,96718.0,96717.0,0.201]
[1740245853831,0.6808032,96718.0,96717.0,0.201]
[1740245857033,0.8977032,96718.0,96717.0,0.201]
[1740245858837,0.2068075,96716.0,96715.0,0.02584]
[1740245859343,0.2068075,96716.0,96710.0,0.00155098]
[1740245859344,0.2068182,96711.0,96710.0,0.00155098]
[1740245859650,0.2068225,96709.0,96708.0,0.00015511]
[1740245860832,0.2078225,96709.0,96708.0,0.00015511]
[1740245861232,0.21816024,96709.0,96708.0,0.00015511]
[1740245862332,0.21916024,96709.0,96708.0,0.00015511]
[1740245864046,0.21916024,96709.0,96708.0,0.01054862]
[1740245864641,0.21916024,96709.0,96708.0,0.00015511]
[1740245866043,0.2088225,96709.0,96708.0,0.00015511]
[1740245868135,0.21935833,96709.0,96708.0,0.00015511]
[1740245869845,0.01253583,96709.0,96708.0,0.20697971]
[1740245870145,0.01253583,96709.0,96708.0,0.27187971]
[1740245876652,0.002,96709.0,96708.0,0.27187971]
[1740245902962,0.002,96709.0,96708.0,0.20697971]
[1740245905569,0.2088225,96709.0,96708.0,0.20697971]
[1740245905972,0.0341,96709.0,96706.0,0.02585]
[1740245906168,0.0341,96709.0,96689.0,0.06212144]
[1740245906372,0.3608,96694.0,96693.0,0.2585705]
[1740245907477,0.3608,96694.0,96693.0,0.2595705]
[1740245908473,0.0321,96699.0,96698.0,0.206846]
[1740245909276,0.0624,96699.0,96698.0,0.206846]
[1740245909681,0.2692439,96699.0,96698.0,0.206846]
[1740245909881,0.0634,96699.0,96698.0,0.206846]
[1740245922087,0.2702439,96699.0,96698.0,0.206846]
[1740245927581,0.6310439,96699.0,96698.0,0.206846]
[1740245932079,0.4242,96699.0,96698.0,0.206846]
[1740245932393,0.6007439,96699.0,96698.0,0.206846]
[1740245933293,0.001,96699.0,96698.0,0.206846]
[1740245933491,0.00015511,96703.0,96702.0,0.2068375]
[1740245933888,0.00015511,96703.0,96702.0,0.3043375]
[1740245934087,0.0944,96718.0,96712.0,0.0517039]
[1740245934389,0.31176431,96718.0,96717.0,0.2068054]
[1740245935593,0.31376431,96718.0,96717.0,0.2068054]
[1740245936990,0.31376431,96718.0,96717.0,0.2078054]
[1740245938187,0.0964,96718.0,96717.0,0.2078054]
[1740245938582,0.3032032,96718.0,96717.0,0.2078054]
[1740245939889,0.31355278,96718.0,96717.0,0.2078054]
[1740245940800,0.3032032,96718.0,96717.0,0.2078054]
[1740245941995,0.31342886,96718.0,96717.0,0.2078054]
[1740245942895,0.31342886,96718.0,96717.0,0.001]
[1740245942896,0.67422886,96718.0,96717.0,0.001]
[1740245943797,0.67422886,96718.0,96702.0,0.0517089]
[1740245943798,0.2068225,96709.0,96702.0,0.0517089]
[1740245943990,0.6777025,96709.0,96704.0,0.206832]
[1740245944297,0.6777025,96709.0,96705.0,0.2068297]
[1740245944298,0.7085025,96709.0,96705.0,0.2068297]
[1740245944487,0.7085025,96709.0,96705.0,0.0517075]
[1740245944691,0.7085025,96709.0,96707.0,0.2068268]
[1740245944897,0.7105025,96709.0,96707.0,0.2068268]
[1740245945696,0.7105025,96709.0,96707.0,0.2068258]
[1740245946095,0.7105025,96709.0,96702.0,0.0517091]
[1740245946597,0.7105025,96709.0,96707.0,0.2068265]
[1740245946888,0.7105025,96709.0,96705.0,0.0517075]
[1740245947105,0.7105025,96709.0,96707.0,0.2068249]
[1740245947402,0.7105025,96709.0,96706.0,0.0517072]
[1740245947704,0.7105025,96709.0,96706.0,0.2068281]
[1740245948001,0.7105025,96709.0,96706.0,0.2068285]
[1740245948707,0.7105025,96709.0,96705.0,0.0517077]
[1740245948898,0.7105025,96709.0,96706.0,0.2068282]
[1740245950202,0.7105025,96709.0,96705.0,0.0517077]
[1740245950402,0.7105025,96709.0,96706.0,0.2068286]
[1740245950608,0.7105025,96709.0,96707.0,0.2068253]
[1740245951191,0.7105025,96709.0,96705.0,0.0517077]
[1740245951394,0.7105025,96709.0,96706.0,0.2068284]
[1740245951900,0.7105025,96709.0,96707.0,0.2068254]
[1740245952098,0.7105025,96709.0,96706.0,0.051707]
[1740245952299,0.7105025,96709.0,96707.0,0.2068263]
[1740245953009,0.7105025,96709.0,96706.0,0.084207]
[1740245953212,0.7105025,96709.0,96708.0,0.20697971]
[1740245953399,0.6797025,96709.0,96708.0,0.20697971]
[1740245956302,0.5696225,96709.0,96708.0,0.20697971]
[1740245981534,0.2088225,96709.0,96708.0,0.20697971]
[1740245981731,0.002,96709.0,96708.0,0.20697971]
[1740245983043,0.002,96709.0,96708.0,0.2171859]
[1740245984129,0.002,96709.0,96708.0,0.20697971]
[1740245990047,0.012,96709.0,96708.0,0.20697971]
[1740246000745,0.2188225,96709.0,96708.0,0.20697971]
[1740246001052,0.2188225,96709.0,96708.0,0.00015511]
[1740246001256,0.2798225,96709.0,96708.0,0.20697971]
[1740246001755,0.2798225,96709.0,96708.0,0.00015511]
[1740246003150,0.2585811,96691.0,96690.0,0.258563]
[1740246003347,0.6293811,96691.0,96690.0,0.37010922]
[1740246003849,0.63948909,96691.0,96690.0,0.37010922]
[1740246004044,0.63948909,96691.0,96690.0,0.16325952]
[1740246004250,0.63948909,96691.0,96690.0,0.16625952]
[1740246004454,0.74780909,96691.0,96690.0,0.16825952]
[1740246004658,0.74780909,96691.0,96690.0,0.37512262]
[1740246005658,0.47922799,96691.0,96690.0,0.37512262]
[1740246005958,0.69608899,96691.0,96690.0,0.37512262]
[1740246006253,0.68608899,96691.0,96690.0,0.37512262]
[1740246006644,0.69608899,96691.0,96690.0,0.37512262]
[1740246008458,0.57776899,96691.0,96690.0,0.37512262]
[1740246008959,0.37090799,96691.0,96690.0,0.37512262]
[1740246009155,0.38090799,96691.0,96690.0,0.40762262]
[1740246009550,0.37090799,96691.0,96690.0,0.40762262]
[1740246010051,0.38090799,96691.0,96690.0,0.40762262]
[1740246010462,0.0321,96693.0,96690.0,0.20075952]
[1740246010657,0.3664466,96696.0,96695.0,0.2068524]
[1740246010857,0.3764466,96696.0,96695.0,0.2068524]
[1740246011063,0.3664466,96696.0,96695.0,0.2068524]
[1740246011362,0.3764466,96696.0,96695.0,0.2068524]
[1740246011753,0.3764466,96696.0,96695.0,0.2078524]
[1740246012749,0.38698529,96696.0,96695.0,0.2078524]
[1740246013757,0.27910529,96696.0,96695.0,0.2078524]
[1740246023657,0.63990529,96696.0,96695.0,0.2078524]
[1740246033879,0.01,96696.0,96695.0,0.2078524]
[1740246034069,0.00015511,96700.0,96699.0,0.2068439]
[1740246034479,0.00015511,96700.0,96699.0,0.2705439]
[1740246036273,0.00115511,96700.0,96699.0,0.2705439]
[1740246036482,0.01115511,96700.0,96699.0,0.2705439]
[1740246054094,0.01115511,96700.0,96699.0,0.18645662]
[1740246054691,0.00115511,96700.0,96699.0,0.18645662]
[1740246055392,0.01115511,96700.0,96699.0,0.18645662]
[1740246075917,0.01115511,96700.0,96699.0,0.15515662]
[1740246076117,0.01115511,96700.0,96699.0,0.12275662]
[1740246076118,0.21799681,96700.0,96699.0,0.12275662]
[1740246076600,0.01115511,96700.0,96692.0,0.0315]
[1740246076796,0.3103075,96691.0,96690.0,0.2068588]
[1740246077006,0.3203075,96691.0,96690.0,0.2068588]
[1740246077402,0.33038533,96691.0,96690.0,0.2068588]
[1740246078915,0.3203075,96691.0,96690.0,0.2068588]
[1740246079214,0.3203075,96691.0,96690.0,0.2118588]
[1740246079512,0.2168741,96691.0,96690.0,0.2118588]
[1740246079709,0.01,96691.0,96690.0,0.2118588]
[1740246080118,0.0949,96692.0,96691.0,0.206861]
[1740246080514,0.0949,96692.0,96691.0,0.239261]
[1740246080814,0.0637,96692.0,96691.0,0.239261]
[1740246081313,0.0737,96692.0,96691.0,0.239261]
[1740246081511,0.0737,96692.0,96691.0,0.241261]
[1740246082100,0.2805588,96692.0,96691.0,0.241261]
[1740246082314,0.0637,96692.0,96691.0,0.241261]
[1740246082514,0.0737,96692.0,96691.0,0.241261]
[1740246082714,0.0637,96692.0,96691.0,0.241261]
[1740246082911,0.2805588,96692.0,96691.0,0.241261]
[1740246083101,0.2805588,96692.0,96691.0,0.243261]
[1740246083708,0.01,96692.0,96691.0,0.243261]
[1740246084616,0.21697167,96697.0,96695.0,0.051713]
[1740246084813,0.2168503,96696.0,96695.0,0.2585654]
[1740246085806,0.2168503,96696.0,96695.0,0.2595654]
[1740246088014,0.2168503,96696.0,96695.0,0.2585654]
[1740246088209,0.01,96696.0,96695.0,0.2595654]
[1740246088407,0.21696767,96697.0,96696.0,0.2068503]
[1740246088618,0.22696767,96697.0,96696.0,0.2068503]
[1740246089207,0.21696767,96697.0,96696.0,0.2068503]
[1740246089410,0.22696767,96697.0,96696.0,0.2068503]
[1740246089718,0.22696657,96697.0,96696.0,0.2068503]
[1740246090413,0.21696657,96697.0,96696.0,0.2068503]
[1740246090610,0.22696657,96697.0,96696.0,0.2068503]
[1740246091307,0.3608,96701.0,96699.0,0.2068439]
[1740246092019,0.10597442,96709.0,96699.0,0.2371439]
[1740246092412,0.01115511,96700.0,96699.0,0.24757447]
[1740246092611,0.01115511,96700.0,96699.0,0.2371439]
[1740246093724,8e-08,96703.0,96702.0,0.2068375]
[1740246093912,8e-08,96703.0,96702.0,0.3142375]
[1740246094109,8e-08,96703.0,96702.0,0.3473375]
[1740246094310,8e-08,96703.0,96702.0,0.2399375]
[1740246094510,8e-08,96703.0,96702.0,0.3472975]
[1740246094715,0.3608,96711.0,96710.0,0.2068203]
[1740246095217,0.3608,96711.0,96710.0,0.2690203]
[1740246096016,0.3638,96711.0,96710.0,0.2690203]
[1740246101826,0.003,96711.0,96710.0,0.2690203]
[1740246103524,0.3608,96729.0,96728.0,0.2067819]
[1740246104115,0.3608,96729.0,96728.0,0.2700819]
[1740246104723,0.3628,96729.0,96728.0,0.2720819]
[1740246112825,0.002,96729.0,96728.0,0.2720819]
[1740246118530,0.37093462,96746.0,96728.0,0.2720819]
[1740246118531,0.3608,96746.0,96737.0,0.2067626]
[1740246118731,0.0647,96745.0,96737.0,0.2067626]
[1740246119741,0.0647,96745.0,96737.0,0.2077626]
[1740246120130,0.0647,96745.0,96737.0,0.2087626]
[1740246124136,0.15988593,96745.0,96737.0,0.2087626]
[1740246126237,0.0647,96745.0,96737.0,0.2087626]
[1740246127247,0.0647,96745.0,96744.0,0.2067477]
[1740246128538,0.0647,96745.0,96744.0,0.2395477]
[1740246129235,0.0647,96745.0,96744.0,0.2405477]
[1740246129651,0.0647,96745.0,96744.0,0.2077477]
[1740246129853,0.0647,96745.0,96744.0,0.2087477]
[1740246139363,0.0647,96745.0,96744.0,0.2077477]
[1740246139563,0.0647,96745.0,96744.0,0.2087477]
[1740246145359,0.0316,96745.0,96744.0,0.2087477]
[1740246161379,0.2383455,96745.0,96744.0,0.2087477]
[1740246166085,0.2706455,96745.0,96744.0,0.2087477]
[1740246169983,0.2706455,96745.0,96744.0,0.002]
[1740246170379,0.2706455,96745.0,96744.0,0.2087477]
[1740246173087,0.2706455,96745.0,96744.0,0.002]
[1740246173288,0.2706455,96745.0,96744.0,0.2087477]
[1740246174081,0.2706455,96745.0,96744.0,0.002]
[1740246175562,0.2706455,96745.0,96744.0,0.2087477]
[1740246176195,0.9922455,96745.0,96744.0,0.2087477]
[1740246180594,0.9922455,96745.0,96744.0,0.002]
[1740246181297,1.0874415,96745.0,96744.0,0.002]
[1740246181697,1.0874415,96745.0,96744.0,0.2087477]
[1740246182498,1.0874415,96745.0,96744.0,0.002]
[1740246184598,0.2067648,96736.0,96735.0,0.2584531]
[1740246184902,0.5675648,96736.0,96735.0,0.2584531]
[1740246185089,0.6616648,96736.0,96735.0,0.2584531]
[1740246185705,0.6616648,96736.0,96735.0,0.2604531]
[1740246188606,0.67212713,96736.0,96735.0,0.2604531]
[1740246191004,0.6616648,96736.0,96735.0,0.2604531]
[1740246191200,0.6304648,96736.0,96735.0,0.2604531]
[1740246193704,0.5675648,96736.0,96735.0,0.2604531]
[1740246207005,0.3608,96736.0,96735.0,0.2604531]
[1740246208096,0.3608,96744.0,96743.0,0.2067498]
[1740246208598,0.5675477,96744.0,96743.0,0.2067498]
[1740246209609,0.5675477,96744.0,96743.0,0.2077498]
[1740246209813,0.2067477,96744.0,96743.0,0.2077498]
[1740246210110,0.2077477,96744.0,96743.0,0.2087498]
[1740246213513,0.2403477,96744.0,96743.0,0.2087498]
[1740246214324,0.2077477,96744.0,96743.0,0.2087498]
[1740246215012,0.001,96744.0,96743.0,0.2087498]
[1740246216207,0.2077477,96744.0,96743.0,0.2087498]
[1740246218504,0.001,96744.0,96743.0,0.2087498]
[1740246219016,0.2077477,96744.0,96743.0,0.2087498]
[1740246219419,0.001,96744.0,96743.0,0.2087498]
[1740246219620,0.2077477,96744.0,96743.0,0.2087498]
[1740246220010,0.001,96744.0,96743.0,0.2087498]
[1740246220511,0.2077477,96744.0,96743.0,0.2087498]
[1740246223514,0.001,96744.0,96743.0,0.2087498]
[1740246226414,0.2077477,96744.0,96743.0,0.2087498]
[1740246227319,0.001,96744.0,96743.0,0.2087498]
[1740246227519,0.2077477,96744.0,96743.0,0.2087498]
[1740246235727,0.5685477,96744.0,96743.0,0.2087498]
[1740246236116,0.5685477,96744.0,96743.0,0.002]
[1740246236317,0.2584555,96738.0,96737.0,0.0516901]
[1740246236520,0.2584555,96738.0,96737.0,0.2584527]
[1740246237522,0.2594555,96738.0,96737.0,0.002]
[1740246237827,0.2594555,96738.0,96737.0,0.2087626]
[1740246244228,0.2077648,96738.0,96737.0,0.2087626]
[1740246247526,0.001,96738.0,96737.0,0.2087626]
[1740246247924,0.001,96738.0,96737.0,0.2399626]
[1740246260830,0.5777,96768.0,96737.0,0.2399626]
[1740246260831,0.10528,96765.0,96737.0,0.394]
[1740246261040,1.02666861,96763.0,96761.0,0.2067113]
[1740246261245,0.3016092,96762.0,96761.0,0.2067113]
[1740246261646,0.0949,96762.0,96761.0,0.2067113]
[1740246262140,0.0303,96762.0,96761.0,0.2396113]
[1740246262445,0.0303,96762.0,96761.0,0.2699113]
[1740246262743,0.04041287,96762.0,96761.0,0.2699113]
[1740246263144,0.04141287,96762.0,96761.0,0.2709113]
[1740246263344,0.24812207,96762.0,96761.0,0.2709113]
[1740246263530,0.24812207,96762.0,96761.0,0.2719113]
[1740246263931,0.04141287,96762.0,96761.0,0.2719113]
[1740246264432,0.24812207,96762.0,96761.0,0.2719113]
[1740246264638,0.01111287,96762.0,96761.0,0.2719113]
[1740246265549,0.1062816,96762.0,96761.0,0.2719113]
[1740246266249,0.3129908,96762.0,96761.0,0.2719113]
[1740246272053,0.3432908,96762.0,96761.0,0.2719113]
[1740246274257,0.24812207,96762.0,96761.0,0.2719113]
[1740246275959,0.04141287,96762.0,96761.0,0.2719113]
[1740246277358,0.21782207,96762.0,96761.0,0.2416113]
[1740246277561,0.25032207,96762.0,96761.0,0.2416113]
[1740246278257,0.04361287,96762.0,96761.0,0.2416113]
[1740246279549,0.25032207,96762.0,96761.0,0.2416113]
[1740246279746,0.25032207,96762.0,96761.0,0.2087113]
[1740246284066,0.61112207,96762.0,96761.0,0.2087113]
[1740246286166,0.61112207,96762.0,96761.0,0.002]
[1740246287964,0.61112207,96762.0,96761.0,0.00126482]
[1740246289272,0.70629999,96762.0,96761.0,0.00126482]
[1740246294567,0.70629999,96762.0,96761.0,0.20797612]
[1740246294767,0.67379999,96762.0,96761.0,0.20797612]
[1740246294976,0.67379999,96762.0,96761.0,0.27047612]
[1740246295566,0.67379999,96762.0,96761.0,0.03146482]
[1740246295776,0.70419999,96762.0,96761.0,0.23817612]
[1740246296772,0.70419999,96762.0,96761.0,0.00126482]
[1740246296975,0.60902207,96762.0,96761.0,0.00126482]
[1740246298382,0.60902207,96762.0,96761.0,0.20797612]
[1740246298586,0.57862207,96762.0,96761.0,0.20797612]
[1740246298989,0.57862207,96762.0,96761.0,0.23837612]
[1740246299492,0.37191287,96762.0,96761.0,0.23837612]
[1740246299787,0.2067284,96753.0,96736.0,0.413091]
[1740246300090,0.2067391,96748.0,96747.0,0.0318]
[1740246300476,0.2067519,96742.0,96736.0,0.0516911]
[1740246300677,0.2067519,96742.0,96738.0,0.03]
[1740246300678,0.5675519,96742.0,96738.0,0.03]
[1740246300881,0.2067583,96739.0,96738.0,0.03]
[1740246301291,0.2067583,96739.0,96738.0,0.2367605]
[1740246302096,0.3119983,96739.0,96738.0,0.2367605]
[1740246302294,0.3139983,96739.0,96738.0,0.2377605]
[1740246302491,0.002,96739.0,96738.0,0.2700605]
[1740246302787,0.002,96739.0,96738.0,0.2710605]
[1740246303390,0.012,96739.0,96738.0,0.2710605]
[1740246304583,0.002,96739.0,96738.0,0.2710605]
[1740246304782,0.012,96739.0,96738.0,0.2710605]
[1740246305778,0.2187583,96739.0,96738.0,0.2710605]
[1740246306791,0.012,96739.0,96738.0,0.2710605]
[1740246306991,0.2187583,96739.0,96738.0,0.2710605]
[1740246307591,0.012,96739.0,96738.0,0.2710605]
[1740246307791,0.2187583,96739.0,96738.0,0.2710605]
[1740246310091,0.2187583,96739.0,96738.0,0.0643]
[1740246310285,0.2187583,96739.0,96738.0,0.032]
[1740246310485,0.2498583,96739.0,96738.0,0.032]
[1740246313686,0.2187583,96739.0,96738.0,0.032]
[1740246315295,0.2187583,96739.0,96738.0,0.2387605]
[1740246315488,0.2187583,96739.0,96738.0,0.032]
[1740246317290,0.9403583,96739.0,96738.0,0.032]
[1740246328507,0.2067712,96733.0,96718.0,0.00155071]
[1740246328800,0.2067712,96733.0,96726.0,0.0312]
[1740246328801,0.2167712,96733.0,96726.0,0.0312]
[1740246328990,0.2067947,96722.0,96721.0,0.1632048]
[1740246329192,0.5775947,96722.0,96721.0,0.1632048]
[1740246329403,0.6717947,96722.0,96721.0,0.1632048]
[1740246329900,0.68232375,96722.0,96721.0,0.1632048]
[1740246331304,0.68532375,96722.0,96721.0,0.1632048]
[1740246340199,0.2068011,96719.0,96718.0,1e-08]
[1740246340408,0.2168011,96719.0,96718.0,1e-08]
[1740246340709,0.2068353,96703.0,96702.0,0.2392349]
[1740246340909,0.5776353,96703.0,96702.0,0.2392349]
[1740246341810,0.58770645,96703.0,96702.0,0.2392349]
[1740246342003,0.58770645,96703.0,96702.0,0.3042349]
[1740246342500,0.5776353,96703.0,96702.0,0.3042349]
[1740246343615,0.5776353,96703.0,96702.0,0.3082349]
[1740246349713,0.3708,96703.0,96702.0,0.3082349]
[1740246350011,0.5776353,96703.0,96702.0,0.3082349]
[1740246351314,0.2168353,96703.0,96702.0,0.3082349]
[1740246351513,0.5776353,96703.0,96702.0,0.3082349]
[1740246355417,0.3608,96703.0,96702.0,0.3082349]
[1740246356314,0.3708,96703.0,96702.0,0.3082349]
[1740246357817,0.01,96703.0,96702.0,0.3082349]
[1740246362222,0.3608,96713.0,96702.0,0.1014]
[1740246362417,0.3608,96713.0,96712.0,0.2068161]
[1740246362821,0.3708,96713.0,96712.0,0.2995161]
[1740246364425,0.3608,96713.0,96712.0,0.2995161]
[1740246364935,0.3718,96713.0,96712.0,0.2995161]
[1740246365225,0.3728,96713.0,96712.0,0.2995161]
[1740246365925,0.5796139,96713.0,96712.0,0.2995161]
[1740246366134,0.3718,96713.0,96712.0,0.2694161]
[1740246366921,0.3728,96713.0,96712.0,0.2694161]
[1740246367420,0.3708,96713.0,96712.0,0.2694161]
[1740246367730,0.3748,96713.0,96712.0,0.2694161]
[1740246368122,0.3738,96713.0,96712.0,0.2694161]
[1740246368523,0.3718,96713.0,96712.0,0.2694161]
[1740246368728,0.3748,96713.0,96712.0,0.2694161]
[1740246370219,0.3648,96713.0,96712.0,0.2694161]
[1740246370424,0.3748,96713.0,96712.0,0.2694161]
[1740246371625,0.3618,96713.0,96712.0,0.2694161]
[1740246371827,0.3628,96713.0,96712.0,0.3019161]
[1740246373226,0.3728,96713.0,96712.0,0.3019161]
[1740246373427,0.3738,96713.0,96712.0,0.3019161]
[1740246373622,0.3638,96713.0,96712.0,0.3019161]
[1740246373829,0.3628,96713.0,96712.0,0.3019161]
[1740246374029,0.3608,96713.0,96712.0,0.3019161]
[1740246374432,0.3708,96713.0,96712.0,0.3019161]
[1740246375229,0.3708,96713.0,96712.0,0.2694161]
[1740246377335,0.3718,96713.0,96712.0,0.2694161]
[1740246377842,0.5806139,96713.0,96712.0,0.2068161]
[1740246378147,0.5796139,96713.0,96712.0,0.2068161]
[1740246378547,0.2585249,96711.0,96710.0,0.2585205]
[1740246378841,0.2685249,96711.0,96710.0,0.2585205]
[1740246380341,0.2715249,96711.0,96710.0,0.2585205]
[1740246380644,0.2725249,96711.0,96710.0,0.2585205]
[1740246382031,0.2725249,96711.0,96710.0,0.2068161]
[1740246383355,0.2725249,96711.0,96707.0,0.0517064]
[1740246383356,0.2068246,96708.0,96707.0,0.258528]
[1740246383539,0.2168246,96708.0,96707.0,0.258528]
[1740246384243,0.2168246,96708.0,96707.0,0.2068216]
[1740246384441,0.01,96708.0,96704.0,0.0517081]
[1740246384654,0.206846,96698.0,96697.0,0.2680461]
[1740246384861,0.216846,96698.0,96697.0,0.2068461]
[1740246385058,0.312146,96698.0,96697.0,0.2068461]
[1740246385649,0.2585677,96695.0,96694.0,0.2585622]
[1740246385859,0.2685677,96695.0,96694.0,0.2585622]
[1740246387060,0.2685677,96695.0,96694.0,0.2605622]
[1740246387663,0.2685677,96695.0,96694.0,0.2635622]
[1740246392061,0.27884284,96695.0,96694.0,0.005]
[1740246392660,0.27884284,96695.0,96694.0,0.2118546]
[1740246395658,0.27884284,96695.0,96694.0,0.005]
[1740246400274,0.27884284,96695.0,96694.0,0.2118546]
[1740246400571,0.27884284,96695.0,96694.0,0.005]
[1740246404776,0.01027514,96695.0,96694.0,0.2118546]
[1740246404971,0.3608,96697.0,96694.0,0.0691]
[1740246405171,0.2068518,96696.0,96695.0,0.2068524]
[1740246405371,0.3608,96697.0,96696.0,0.2068503]
[1740246405572,0.5676481,96697.0,96696.0,0.2068503]
[1740246405968,0.58787582,96697.0,96696.0,0.2068503]
[1740246406168,0.38102772,96697.0,96696.0,0.2068503]
[1740246406474,0.3608,96697.0,96696.0,0.2068503]
[1740246406669,0.3608,96697.0,96696.0,0.2078503]
[1740246407067,0.2585525,96703.0,96702.0,0.2585446]
[1740246407268,0.2685525,96703.0,96702.0,0.2585446]
[1740246407465,0.2168353,96703.0,96702.0,0.2585446]
[1740246407666,0.4125081,96705.0,96702.0,0.2585446]
[1740246407667,0.3608,96705.0,96702.0,0.0517093]
[1740246407875,0.3608,96705.0,96704.0,0.2068332]
[1740246408065,0.57796305,96705.0,96704.0,0.2068332]
[1740246408271,0.57796305,96705.0,96704.0,0.2394332]
[1740246408577,0.58796305,96705.0,96704.0,0.2394332]
[1740246409263,0.58896305,96705.0,96704.0,0.2394332]
[1740246409773,0.58996305,96705.0,96704.0,0.2394332]
[1740246411377,0.58996305,96705.0,96704.0,0.0326]
[1740246411572,0.258549,96702.0,96701.0,0.2068375]
[1740246411777,0.268549,96702.0,96701.0,0.2068375]
[1740246416477,0.2168375,96702.0,96701.0,0.2068375]
[1740246417374,0.01,96702.0,96701.0,0.2068375]
[1740246418481,0.37165206,96705.0,96704.0,0.2068332]
[1740246418482,0.3608,96705.0,96704.0,0.2068332]
[1740246418980,0.3608,96705.0,96704.0,0.2680332]
[1740246419974,0.3618,96705.0,96704.0,0.2680332]
[1740246420578,0.3718,96705.0,96704.0,0.2680332]
[1740246421379,0.3728,96705.0,96704.0,0.2680332]
[1740246422284,0.2068417,96701.0,96699.0,0.0517109]
[1740246422487,0.2476417,96700.0,96699.0,0.2585548]
[1740246422987,0.01,96700.0,96699.0,0.2585548]
[1740246423489,0.01,96700.0,96699.0,0.2595548]
[1740246423880,0.2168417,96700.0,96699.0,0.2595548]
[1740246424486,0.2585486,96703.0,96702.0,0.2068375]
[1740246425378,0.2585486,96703.0,96702.0,0.2377375]
[1740246425583,0.2685486,96703.0,96702.0,0.2377375]
[1740246426188,0.2585486,96703.0,96702.0,0.2377375]
[1740246426390,0.2685486,96703.0,96702.0,0.2377375]
[1740246429184,0.2685486,96703.0,96702.0,0.2068375]
[1740246432492,0.2068546,96694.0,96689.0,0.00056]
[1740246432794,0.2068802,96682.0,96681.0,0.3930443]
[1740246432994,0.5776802,96682.0,96681.0,0.3930443]
[1740246433196,0.6409802,96682.0,96681.0,0.3930443]
[1740246434193,0.6513982,96682.0,96681.0,0.1861619]
[1740246434399,0.6513982,96682.0,96681.0,0.1931619]
[1740246434788,0.6513982,96682.0,96681.0,0.1981619]
[1740246434994,0.6513982,96682.0,96681.0,0.4050443]
[1740246435295,0.6513982,96682.0,96681.0,0.1981619]
[1740246435987,0.6513982,96682.0,96681.0,0.1971619]
[1740246436995,0.6513982,96682.0,96681.0,0.011]
[1740246438782,0.6813982,96682.0,96681.0,0.011]
[1740246444794,0.2068845,96680.0,96679.0,0.00155145]
[1740246444988,0.2068995,96673.0,96668.0,0.2069093]
[1740246445291,0.2068995,96673.0,96649.0,0.36136]
[1740246445292,0.5776995,96673.0,96649.0,0.36136]
[1740246445494,0.6095995,96673.0,96659.0,0.0615]
[1740246445688,0.2069273,96660.0,96659.0,0.0615]
[1740246445994,0.5657273,96660.0,96659.0,0.0615]
[1740246446585,0.57605584,96660.0,96659.0,0.0615]
[1740246446790,0.56905584,96660.0,96659.0,0.0615]
[1740246446987,0.5587273,96660.0,96659.0,0.2684295]